bitfinex-derivatives/quotes_ETHF0:USTF0_20251211
["timestamp","ask_amount","ask_price","bid_price","bid_amount"]
[1765413389353,3.21156034,3301.4,3301.3,0.15142]
[1765413389748,5.0798,3300.6,3300.5,3.2078]
[1765413390047,1.4941,3300.5,3299.4,0.15151]
[1765413390353,3.2078,3300.1,3299.4,0.15151]
[1765413390548,3.2078,3299.6,3299.4,0.15151]
[1765413391252,0.00454064,3299.8,3299.6,0.1515]
[1765413392155,0.00454064,3299.8,3299.7,0.1515]
[1765413394160,2.46294064,3299.8,3299.7,0.1515]
[1765413395454,6.57844064,3299.8,3299.7,0.1515]
[1765413396664,2.46294064,3299.8,3299.7,0.1515]
[1765413396861,0.00454064,3299.8,3299.7,0.1515]
[1765413397861,0.00454064,3299.8,3299.7,5.3681]
[1765413398058,5.08434064,3299.8,3299.7,0.1515]
[1765413398263,6.57844064,3299.8,3299.7,0.1515]
[1765413398559,5.0798,3299.5,3299.4,0.00362864]
[1765413398862,8.2876,3299.5,3299.4,0.00362864]
[1765413399358,1.49864064,3299.8,3299.4,0.00362864]
[1765413399663,6.57844064,3299.8,3299.7,0.1515]
[1765413401763,0.00454064,3299.8,3299.7,0.1515]
[1765413402161,6.57844064,3299.8,3299.7,0.1515]
[1765413402761,2.46294064,3299.8,3299.7,0.1515]
[1765413403258,5.08434064,3299.8,3299.7,0.1515]
[1765413404161,6.57844064,3299.8,3299.7,0.1515]
[1765413412564,0.00454064,3299.8,3299.7,5.3681]
[1765413412760,0.00454064,3299.8,3299.7,0.1515]
[1765413412761,5.08434064,3299.8,3299.7,0.1515]
[1765413413564,0.00454064,3299.8,3299.7,5.3681]
[1765413413963,0.00454064,3299.8,3299.4,0.00362864]
[1765413413964,5.0798,3299.5,3299.4,0.00362864]
[1765413414269,6.5739,3299.4,3299.2,0.00454064]
[1765413415066,5.0798,3299.3,3298.2,1.5485]
[1765413415366,8.2876,3298.8,3298.7,0.15154]
[1765413415666,8.29136676,3298.8,3298.7,0.15154]
[1765413416171,3.21156676,3298.8,3298.7,2.69304]
[1765413416567,0.00376676,3298.8,3298.7,5.36814]
[1765413416974,8.29136676,3298.8,3298.7,0.15154]
[1765413417771,5.08356676,3298.8,3298.7,0.15154]
[1765413420668,0.00376676,3298.8,3298.7,5.07164]
[1765413423073,3.2078,3299.4,3299.3,5.07161]
[1765413423279,3.21234064,3299.8,3299.7,2.579]
[1765413423479,3.21234064,3299.8,3299.7,5.0716]
[1765413423670,3.21234064,3299.8,3299.7,2.579]
[1765413423869,8.48254064,3299.8,3299.7,0.1515]
[1765413424082,8.48525056,3299.8,3299.7,0.1515]
[1765413424279,5.2702,3299.1,3299.0,0.15153]
[1765413424480,8.478,3299.1,3299.0,0.15153]
[1765413426176,8.478,3299.1,3298.1,3.2078]
[1765413426177,5.2702,3298.3,3298.2,0.00346997]
[1765413426374,5.2702,3298.3,3297.7,0.15159]
[1765413426375,5.2702,3297.8,3297.7,0.15159]
[1765413427281,3.2078,3297.9,3297.0,3.2078]
[1765413427282,5.2702,3297.1,3297.0,3.2078]
[1765413427482,5.2702,3296.7,3296.3,0.15165]
[1765413427679,5.46751498,3297.1,3296.5,0.15164]
[1765413428383,2.6506,3296.6,3296.5,0.15470047]
[1765413428585,5.2702,3296.6,3296.5,0.15470047]
[1765413429088,8.478,3296.6,3296.5,0.15470047]
[1765413429786,5.2702,3296.4,3296.3,0.00316861]
[1765413430381,3.2078,3296.6,3296.3,0.00316861]
[1765413430580,3.2078,3296.6,3296.3,0.15481861]
[1765413430581,2.4792,3296.4,3296.3,0.15481861]
[1765413430786,5.0621,3296.4,3296.3,0.15481861]
[1765413431187,2.4792,3296.4,3296.3,0.15481861]
[1765413431389,3.21052297,3297.1,3296.3,1.40666861]
[1765413431580,3.21052297,3297.1,3297.0,6.53062]
[1765413432087,2.4792,3297.6,3297.5,0.1516]
[1765413432288,5.0621,3297.6,3297.5,0.1516]
[1765413432485,5.687,3297.8,3297.7,0.15159]
[1765413432679,3.2078,3297.8,3297.7,0.15159]
[1765413432884,2.4792,3297.8,3297.7,0.15159]
[1765413433088,0.00454787,3298.1,3297.8,0.15158]
[1765413433389,2.4792,3298.0,3297.9,0.15158]
[1765413433994,5.0621,3298.0,3297.9,0.15158]
[1765413434582,5.0621,3298.0,3296.6,3.2078]
[1765413434583,2.4792,3296.7,3296.6,3.2078]
[1765413434781,5.0621,3296.4,3296.3,0.15481861]
[1765413435289,5.0621,3296.4,3296.3,0.00316861]
[1765413437497,3.2078,3297.0,3296.6,0.15164]
[1765413437797,3.2078,3297.0,3296.7,0.15163]
[1765413438194,2.4792,3296.8,3296.7,0.15163]
[1765413438399,5.0621,3296.4,3296.3,0.00316861]
[1765413438617,8.2699,3296.4,3296.3,0.00316861]
[1765413440795,8.2699,3296.4,3295.1,8.2608]
[1765413440796,2.4792,3295.6,3295.1,8.2608]
[1765413440990,0.00454787,3295.7,3295.6,2.71299]
[1765413441192,0.00454787,3295.7,3295.6,6.53069]
[1765413441395,0.00454787,3295.7,3295.6,9.73849]
[1765413441895,5.0621,3296.3,3296.2,0.15165]
[1765413442089,2.48302502,3295.7,3295.6,0.15469402]
[1765413442291,5.06592502,3295.7,3295.6,0.15469402]
[1765413442797,2.4792,3295.0,3294.8,0.15172]
[1765413443393,3.2078,3295.4,3294.8,0.15172]
[1765413443595,8.2699,3294.9,3294.8,0.15496074]
[1765413443994,8.2699,3294.9,3294.8,0.00324074]
[1765413444194,5.0621,3294.7,3294.6,0.00454787]
[1765413444502,5.0621,3294.7,3294.6,4.787e-05]
[1765413445193,5.0621,3294.7,3294.6,0.00319927]
[1765413445500,2.4792,3294.0,3293.9,3.35956]
[1765413446497,2.4792,3294.0,3293.9,3.36298279]
[1765413446891,0.00454787,3294.3,3293.9,3.21122279]
[1765413447202,0.00454787,3294.3,3294.2,6.53075]
[1765413447497,0.00454787,3294.3,3294.2,1.55525]
[1765413447698,0.00454787,3294.3,3294.2,0.15175]
[1765413447899,5.06664787,3294.3,3294.2,0.15175]
[1765413449004,4.90304787,3294.3,3294.2,0.15175]
[1765413449501,2.48374787,3294.3,3294.2,0.15175]
[1765413450200,0.00454787,3294.3,3294.2,0.15175]
[1765413450505,0.00454787,3294.3,3294.2,2.40785]
[1765413450801,0.00454787,3294.3,3294.2,6.18395]
[1765413451005,4.78254787,3294.3,3294.2,0.15175]
[1765413451594,0.00454787,3294.3,3294.2,6.18395]
[1765413451797,0.00454787,3294.3,3294.2,3.76265]
[1765413451998,2.36324787,3294.3,3294.2,0.15175]
[1765413452401,0.00454787,3294.3,3294.2,6.18395]
[1765413453203,3.2078,3294.9,3294.8,4.82912]
[1765413453604,3.2078,3294.9,3294.8,2.40782]
[1765413453804,7.9858,3294.9,3294.8,0.15172]
[1765413454508,5.5665,3294.9,3294.8,0.15172]
[1765413455504,3.2078,3294.9,3294.8,0.15172]
[1765413455711,5.5665,3294.9,3294.8,0.15172]
[1765413455906,0.00454787,3295.2,3294.9,0.15171]
[1765413456102,4.778,3295.0,3294.9,0.15171]
[1765413456408,2.3587,3295.0,3294.9,0.15171]
[1765413456802,2.36324787,3295.2,3295.1,0.15171]
[1765413457207,4.78254787,3295.2,3295.1,0.15171]
[1765413457407,5.67669618,3295.2,3295.1,0.15171]
[1765413457606,4.778,3294.6,3294.5,0.00454787]
[1765413457804,2.3587,3294.9,3294.8,0.15172]
[1765413458008,7.99034787,3295.2,3295.1,0.15171]
[1765413458514,8.88470901,3295.2,3295.1,0.15171]
[1765413459605,3.21234787,3295.2,3295.1,0.15171]
[1765413459810,7.99034787,3295.2,3295.1,0.15171]
[1765413460315,8.8849326,3295.2,3295.1,0.15171]
[1765413460609,7.99034787,3295.2,3295.1,0.15171]
[1765413461206,4.778,3294.6,3294.5,0.15627787]
[1765413463018,5.67310702,3294.6,3294.5,0.15627787]
[1765413465219,4.778,3294.0,3293.8,0.15177]
[1765413465422,7.618369,3294.0,3293.8,0.15177]
[1765413465622,2.3587,3293.5,3292.6,15.3878]
[1765413465818,2.3587,3293.5,3293.1,3.2078]
[1765413466129,2.3587,3294.0,3293.9,0.15176]
[1765413466420,0.89744906,3294.0,3293.9,2.40786]
[1765413466624,0.89744906,3294.0,3293.9,2.41031423]
[1765413466925,0.89744906,3294.0,3293.9,8.03941423]
[1765413467217,0.0045549,3294.3,3294.2,4.82915]
[1765413470731,1e-08,3294.3,3294.2,4.82915]
[1765413474618,1e-08,3294.3,3294.2,10.82915]
[1765413475428,0.90150928,3295.0,3294.9,4.82912]
[1765413475630,3.2078,3295.5,3295.4,4.6774]
[1765413475932,4.10953777,3295.5,3295.4,4.82909]
[1765413477031,3.2078,3295.5,3295.4,4.82909]
[1765413478926,3.2078,3295.5,3295.2,1.3548]
[1765413478927,0.00382502,3295.7,3295.6,4.47179]
[1765413479427,0.0045549,3295.8,3295.7,4.47178]
[1765413479630,3.2078,3296.4,3296.3,0.15165]
[1765413479631,7.4113,3296.4,3296.3,0.15165]
[1765413480635,7.41475469,3296.4,3296.3,0.15516474]
[1765413481432,4.2035,3296.1,3296.0,0.0045549]
[1765413481731,3.21125469,3296.4,3295.5,0.15169]
[1765413481933,2.1502,3295.8,3295.7,0.15168]
[1765413482135,4.2035,3295.8,3295.7,0.15168]
[1765413482436,2.1502,3296.2,3296.1,0.15166]
[1765413482629,4.2035,3296.2,3296.1,0.15166]
[1765413484028,4.2035,3295.9,3295.8,0.0045549]
[1765413484340,7.4113,3295.9,3295.8,0.1562349]
[1765413486229,4.2035,3295.8,3295.7,0.00239005]
[1765413486634,4.2035,3295.4,3295.3,0.1517]
[1765413486835,7.4113,3295.4,3295.3,0.1517]
[1765413487337,3.2078,3295.4,3295.3,4.4718]
[1765413487539,7.4113,3295.4,3295.3,0.1517]
[1765413488538,13.4113,3295.4,3294.8,3.2078]
[1765413488742,4.2035,3294.8,3294.7,0.15172]
[1765413489140,4.2035,3294.5,3294.4,3.2078]
[1765413489534,4.9843,3294.5,3294.2,0.15175]
[1765413489735,4.2035,3293.6,3293.5,1.47248]
[1765413489939,4.2057632,3293.6,3293.5,1.47248]
[1765413490239,4.2057632,3293.6,3293.5,0.15178]
[1765413491650,2.1247,3292.9,3292.8,3.35961]
[1765413492142,2.1247,3292.9,3292.8,5.47711]
[1765413493541,7.4565,3292.9,3292.1,0.15184]
[1765413493745,2.1247,3292.5,3292.4,0.15183]
[1765413494134,4.2487,3292.5,3292.4,0.15183]
[1765413494443,2.1247,3291.7,3291.6,0.15187]
[1765413494747,4.2487,3291.7,3291.6,0.15187]
[1765413495043,3.2078,3292.1,3291.6,5.56447]
[1765413495246,3.2078,3292.1,3291.7,0.15186]
[1765413495247,2.1247,3291.8,3291.7,0.15186]
[1765413495840,5.3325,3292.5,3292.4,0.15183]
[1765413496046,5.3325,3292.5,3292.4,2.26933]
[1765413496238,7.4565,3292.5,3292.4,0.15183]
[1765413496434,5.3325,3292.5,3292.4,0.15183]
[1765413497041,7.4565,3292.5,3292.4,0.15183]
[1765413498640,7.4565,3292.5,3291.6,1.273]
[1765413498641,4.2487,3291.8,3291.6,0.15187]
[1765413498843,4.2487,3291.7,3291.6,0.15187]
[1765413500242,2.1247,3291.0,3290.9,3.3597]
[1765413500543,2.12745004,3291.0,3290.9,0.1519]
[1765413500749,4.25145004,3291.0,3290.9,0.1519]
[1765413501247,2.12745004,3291.0,3290.9,0.1519]
[1765413501453,2.1247,3290.6,3290.5,3.2078]
[1765413501651,3.2078,3290.7,3290.4,3.54242]
[1765413501949,2.1247,3290.5,3290.4,3.54242]
[1765413502148,4.2487,3290.5,3290.4,1.42492]
[1765413502351,4.2487,3290.2,3290.1,3.2078]
[1765413502537,4.2487,3290.2,3289.3,12.172]
[1765413502538,4.2487,3289.9,3289.8,3.2078]
[1765413502849,2.1247,3290.0,3289.9,0.15195]
[1765413503051,4.2487,3290.0,3289.9,0.15195]
[1765413503245,4.2487,3289.9,3289.8,3.2078]
[1765413503551,2.1247,3289.5,3289.4,3.2078]
[1765413504051,5.15306198,3290.1,3289.4,5.3253]
[1765413504244,3.2078,3290.1,3289.4,3.2078]
[1765413504649,4.2487,3289.3,3288.8,0.152]
[1765413505043,4.2532549,3289.4,3289.3,0.15198]
[1765413505445,2.1292549,3289.4,3289.3,0.15198]
[1765413505646,4.2532549,3289.4,3289.3,0.15198]
[1765413505845,2.1292549,3289.4,3289.3,0.15198]
[1765413506039,0.0045549,3289.4,3289.3,4.29158]
[1765413506341,2.1247,3288.8,3288.6,1.273]
[1765413506544,3.2078,3289.2,3288.7,0.152]
[1765413507039,4.2487,3288.8,3288.7,0.152]
[1765413507242,3.2078,3289.2,3288.3,3.2078]
[1765413507446,3.2078,3289.2,3288.6,1.273]
[1765413507650,3.2078,3289.2,3289.1,0.15198]
[1765413507850,5.3325,3289.2,3289.1,0.15198]
[1765413508040,4.2487,3289.2,3289.1,0.15198]
[1765413508246,1.9134,3288.7,3288.6,1.273]
[1765413508439,3.8638,3288.7,3288.6,1.273]
[1765413509342,3.2078,3289.2,3288.6,3.2895]
[1765413509539,3.2078,3289.2,3289.1,0.15198]
[1765413509742,3.2078,3289.2,3289.1,4.15658]
[1765413510144,7.0716,3289.2,3289.1,0.15198]
[1765413510352,0.0045549,3289.4,3289.3,2.0165]
[1765413510543,1.9134,3289.3,3289.2,1.2274]
[1765413510738,0.0045549,3289.4,3289.3,2.16848]
[1765413510942,0.0045549,3289.4,3289.3,4.15658]
[1765413511541,3.8683549,3289.4,3289.3,0.15198]
[1765413511749,3.8638,3288.8,3288.6,1.273]
[1765413511946,3.2123549,3289.4,3288.8,0.152]
[1765413512349,0.0045549,3289.4,3289.3,4.15658]
[1765413512749,3.8683549,3289.4,3289.3,0.15198]
[1765413513260,7.0761549,3289.4,3289.3,0.15198]
[1765413513549,3.2123549,3289.4,3289.3,0.15198]
[1765413513749,3.2123549,3289.4,3289.3,4.15658]
[1765413513946,0.0045549,3289.4,3289.3,4.15658]
[1765413514145,0.0045549,3289.4,3289.3,2.16848]
[1765413514347,0.0045549,3289.4,3289.3,4.15658]
[1765413514749,3.2078,3289.9,3289.8,1.37935]
[1765413515252,7.0716,3289.9,3289.8,0.15195]
[1765413515858,3.8638,3289.6,3289.5,0.0045549]
[1765413517055,3.8638,3289.3,3289.2,0.15198]
[1765413518255,4.75121232,3289.3,3289.2,0.15198]
[1765413518652,4.75121232,3289.3,3288.7,3.2078]
[1765413518961,3.8638,3288.8,3288.7,3.2078]
[1765413519357,3.8638,3288.7,3288.6,0.152]
[1765413519854,3.8638,3288.7,3286.8,2.33256381]
[1765413519855,3.8638,3287.9,3287.8,3.2078]
[1765413520054,1.9134,3287.5,3287.4,1.38218946]
[1765413520251,0.00236941,3287.5,3287.4,1.38218946]
[1765413520657,6.00236941,3287.5,3286.8,1.2274]
[1765413520866,3.2078,3287.2,3286.8,1.2274]
[1765413521055,0.00236941,3287.5,3287.4,1.37946]
[1765413521260,0.00236941,3287.5,3286.8,1.2274]
[1765413521462,0.84690033,3287.4,3286.8,1.2274]
[1765413521659,3.2078,3287.0,3286.8,1.2274]
[1765413521958,3.2078,3287.0,3286.9,0.15209]
[1765413523157,3.2078,3287.0,3286.2,1.2274]
[1765413523351,3.2078,3286.4,3286.2,1.2274]
[1765413523557,2.27512701,3287.1,3286.2,1.2274]
[1765413523756,0.84718121,3287.0,3286.2,1.2274]
[1765413523953,0.84718121,3286.9,3286.2,1.2274]
[1765413524157,3.2078,3286.4,3286.3,0.15211]
[1765413524561,3.2078,3286.4,3286.3,4.15671]
[1765413524763,2.11857083,3287.7,3286.2,1.2274]
[1765413524764,3.2078,3286.8,3286.7,4.0046]
[1765413524966,3.2078,3286.8,3286.7,0.1521]
[1765413525266,0.00236941,3287.5,3287.4,1.2274]
[1765413525462,0.84926864,3287.5,3287.4,1.2274]
[1765413525660,0.00236941,3287.5,3287.4,1.2274]
[1765413525863,0.8492058,3287.5,3287.4,1.2274]
[1765413526356,6.8492058,3287.5,3286.8,1.2274]
[1765413526563,3.2078,3287.1,3286.8,1.2274]
[1765413526954,3.2078,3287.1,3286.8,1.37949]
[1765413528253,0.83438276,3287.0,3286.8,1.37949]
[1765413528462,3.2078,3287.1,3286.8,1.37949]
[1765413528661,0.83456018,3287.0,3286.8,1.37949]
[1765413528858,3.2078,3287.1,3286.8,1.37949]
[1765413529061,0.83470041,3287.0,3286.8,1.37949]
[1765413529260,3.2078,3287.1,3287.0,4.0046]
[1765413529462,0.00236941,3287.5,3287.4,5.232]
[1765413529768,3.2078,3287.9,3287.8,4.0046]
[1765413530363,2.87312508,3287.9,3287.8,4.0046]
[1765413530859,2.87610259,3287.9,3287.8,0.00236941]
[1765413531065,3.70196444,3287.9,3287.8,0.00236941]
[1765413531658,9.70196444,3287.9,3287.8,0.00236941]
[1765413531863,11.97709145,3287.9,3286.8,1.2274]
[1765413532062,3.2078,3286.9,3286.8,1.2274]
[1765413533060,4.03418059,3286.9,3286.8,1.2274]
[1765413533659,4.42708059,3286.9,3286.3,0.15211]
[1765413533860,0.82638059,3286.8,3286.4,4.0046]
[1765413534065,3.2078,3286.9,3286.6,2.0165]
[1765413534266,0.82644785,3286.8,3286.3,0.15211]
[1765413534465,3.2078,3286.9,3286.3,0.15211]
[1765413534768,0.82652868,3286.8,3286.3,0.15211]
[1765413535066,3.2078,3286.9,3286.3,0.15211]
[1765413535274,0.5016,3286.3,3286.2,4.4352]
[1765413535874,0.5016,3286.3,3286.2,1.2274]
[1765413536063,1.32795964,3286.3,3286.2,1.2274]
[1765413536265,0.4784,3285.7,3285.6,4.4352]
[1765413536465,3.2078,3285.8,3285.7,4.15674]
[1765413536667,0.8245927,3285.8,3285.7,4.15674]
[1765413536863,0.00456197,3286.0,3285.9,4.0046]
[1765413537068,1.2845264,3286.0,3285.7,0.15214]
[1765413537260,1.2845264,3286.0,3285.6,1.2274]
[1765413537261,3.2078,3285.8,3284.8,3.2078]
[1765413537463,0.82466443,3285.7,3285.0,1.37957]
[1765413537664,0.82466443,3285.6,3285.3,0.15216]
[1765413537864,3.2078,3285.7,3285.5,2.0165]
[1765413538069,0.00456197,3286.0,3285.8,1.2274]
[1765413538460,3.5241,3285.9,3285.5,0.15215]
[1765413538667,0.00456197,3286.0,3285.5,0.15215]
[1765413538866,0.00778922,3286.0,3285.5,0.15551194]
[1765413539461,0.00778922,3286.0,3285.8,1.3177]
[1765413539866,1.8412,3285.9,3285.8,1.3177]
[1765413540270,0.00778922,3286.0,3285.9,2.3448]
[1765413540470,0.00778922,3286.0,3285.9,4.6838]
[1765413541266,0.00778922,3286.0,3285.8,1.46984]
[1765413541965,0.00778922,3286.0,3285.5,0.00336194]
[1765413541966,1.7942,3285.6,3285.5,0.00336194]
[1765413542163,0.00778922,3286.0,3285.8,1.3177]
[1765413542365,0.82444878,3285.9,3285.8,1.3177]
[1765413542561,2.59534878,3285.9,3285.8,1.3177]
[1765413543161,0.82444878,3285.9,3285.8,3.6625]
[1765413543373,0.82444878,3285.9,3285.8,6.0015]
[1765413543568,0.35448446,3285.9,3285.8,6.15364]
[1765413543769,0.00778922,3286.0,3285.9,4.6838]
[1765413544168,0.00778922,3286.0,3285.8,1.46984]
[1765413544471,1.7476,3285.9,3285.8,1.3177]
[1765413545276,0.00778922,3286.0,3285.9,4.6838]
[1765413546162,0.00778922,3286.0,3285.9,4.83593]
[1765413547075,0.00778922,3286.0,3285.9,10.83593]
[1765413547979,4.79672812,3287.3,3287.2,6.0015]
[1765413548168,3.2078,3287.3,3287.2,6.0015]
[1765413548373,3.2078,3287.3,3287.2,6.15357]
[1765413548773,3.2114564,3287.3,3287.2,6.15357]
[1765413548971,0.0036564,3287.3,3287.2,6.15357]
[1765413549175,0.0036564,3287.3,3287.2,15.39957]
[1765413549373,1.7100564,3287.3,3287.2,1.3177]
[1765413549580,1.6846,3286.8,3286.5,1.3177]
[1765413549878,3.2078,3286.8,3286.5,1.3177]
[1765413550781,3.2078,3287.2,3286.5,1.3177]
[1765413551778,3.2078,3286.6,3286.5,1.3177]
[1765413552083,4.8924,3286.6,3286.5,1.3177]
[1765413552780,6.551,3286.6,3286.0,0.15213]
[1765413553084,6.551,3286.6,3286.5,6.15361]
[1765413553085,3.2078,3286.6,3286.5,6.15361]
[1765413553486,3.2078,3287.0,3286.9,4.83588]
[1765413553683,3.2078,3287.0,3286.9,0.15208]
[1765413553684,4.8206,3287.0,3286.9,0.15208]
[1765413553877,6.4334,3287.0,3286.9,0.15208]
[1765413554079,3.2078,3287.0,3286.9,2.49688]
[1765413554885,3.2078,3287.0,3286.9,4.60428]
[1765413555083,3.2078,3287.0,3286.5,1.3177]
[1765413555282,6.3872,3286.6,3286.5,1.3177]
[1765413555687,3.2078,3286.6,3286.5,5.5525]
[1765413556184,3.2078,3286.6,3286.5,1.3177]
[1765413556689,3.2078,3286.6,3286.5,5.70461]
[1765413557485,3.2078,3287.0,3286.5,5.70461]
[1765413558290,3.2078,3287.0,3286.6,0.1521]
[1765413559295,3.2078,3287.0,3286.9,2.1274]
[1765413559695,3.2078,3287.0,3286.8,1.3195]
[1765413560385,1.4771,3286.9,3286.8,1.3195]
[1765413560589,2.9096,3286.6,3285.8,4.5255]
[1765413560789,3.2078,3286.4,3285.8,4.5255]
[1765413561198,1.4548,3286.3,3286.2,1.3195]
[1765413561495,2.8652,3285.6,3285.5,0.00336194]
[1765413561694,1.4326,3284.6,3284.5,0.00772]
[1765413562093,3.2078,3284.6,3284.5,0.00772]
[1765413562294,3.2078,3285.5,3285.0,1.3195]
[1765413562591,3.2078,3285.1,3285.0,1.32243845]
[1765413562797,3.2078,3285.1,3285.0,5.55723845]
[1765413562994,0.00390041,3285.5,3285.2,0.15217]
[1765413562995,3.21170041,3285.5,3285.2,0.15217]
[1765413563693,3.21170041,3285.5,3285.4,4.2348]
[1765413564294,3.21170041,3285.5,3285.4,4.38696]
[1765413564800,3.21170041,3285.5,3285.4,2.27956]
[1765413565094,3.21170041,3285.5,3285.4,4.38696]
[1765413566395,3.21170041,3285.5,3285.4,2.27956]
[1765413566600,4.53550041,3285.5,3285.4,0.15216]
[1765413567195,3.21170041,3285.5,3285.4,0.15216]
[1765413568198,0.00390041,3285.5,3285.4,4.39926]
[1765413569097,0.00390041,3285.5,3285.4,13.60706]
[1765413569399,0.00456197,3285.6,3285.5,4.28195]
[1765413569607,3.2078,3285.9,3285.8,4.28194]
[1765413569904,3.2078,3285.9,3285.8,16.55494]
[1765413570306,3.21131924,3285.9,3285.8,16.55494]
[1765413570896,3.21131924,3285.9,3285.8,16.55394]
[1765413571208,0.00351924,3285.9,3285.8,19.76174]
[1765413571710,0.00456197,3286.2,3286.1,4.28192]
[1765413572306,0.00456197,3286.2,3286.1,0.15212]
[1765413572506,0.00777991,3286.2,3286.1,0.15212]
[1765413573311,1.22597991,3286.2,3286.1,0.15212]
[1765413573506,1.22597991,3286.2,3285.6,1.2504]
[1765413573711,3.2078,3285.9,3285.8,2.0101]
[1765413574909,3.2078,3285.9,3285.8,4.28194]
[1765413576014,0.00777991,3286.2,3286.1,4.1298]
[1765413576510,1.1334,3285.6,3285.5,0.00456197]
[1765413576715,3.2078,3285.6,3285.5,4.13436197]
[1765413576915,0.00777991,3286.2,3285.5,4.13436197]
[1765413576916,3.2078,3286.0,3285.6,1.2504]
[1765413577710,1.1123,3285.7,3285.6,1.2504]
[1765413577918,3.2078,3286.0,3285.6,3.41265]
[1765413578415,2.1824,3285.7,3285.6,1.40255]
[1765413578818,3.2078,3286.0,3285.6,3.41265]
[1765413579415,1.0702,3285.7,3285.6,1.40255]
[1765413579616,2.1194,3285.7,3285.6,1.40255]
[1765413580012,3.2078,3286.0,3285.9,4.28193]
[1765413580214,5.3062,3286.0,3285.9,0.15213]
[1765413580415,2.0775,3285.6,3285.5,0.00456197]
[1765413580611,5.2853,3285.6,3285.5,0.00456197]
[1765413580810,2.0566,3285.1,3284.7,0.15219]
[1765413581114,7.22199744,3285.1,3284.7,0.15219]
[1765413581316,13.22199744,3285.1,3285.0,0.00293845]
[1765413581510,2.0365,3284.6,3284.1,0.15221]
[1765413581712,7.20189744,3284.6,3284.1,0.15221]
[1765413582027,13.20189744,3284.6,3283.8,1.3195]
[1765413582325,2.0164,3283.9,3283.8,1.3195]
[1765413582521,5.22748888,3283.9,3283.8,1.32199837]
[1765413582715,5.22748888,3283.9,3283.8,0.00249837]
[1765413582916,3.21108888,3283.9,3283.8,5.38269837]
[1765413583214,4.19908888,3283.9,3283.8,1.25289837]
[1765413583518,3.21108888,3283.9,3283.8,3.26299837]
[1765413583924,3.21108888,3283.9,3283.8,5.53492837]
[1765413584119,4.17958888,3283.9,3283.8,1.40512837]
[1765413584519,5.14808888,3283.9,3283.8,1.40512837]
[1765413584718,5.14808888,3283.9,3283.8,0.00249837]
[1765413585422,1.8958,3283.3,3282.7,0.15228]
[1765413585613,3.2078,3283.6,3282.5,3.2078]
[1765413585820,3.2078,3283.6,3283.2,1.2504]
[1765413586325,0.9274,3283.3,3283.2,1.2536932]
[1765413587121,3.2078,3283.6,3283.3,0.15225]
[1765413587322,0.9073,3283.4,3283.3,0.15225]
[1765413587920,1.7942,3283.4,3283.3,0.15225]
[1765413588217,0.9073,3283.4,3283.3,0.15225]
[1765413588516,1.7535,3283.3,3283.2,0.0032932]
[1765413588719,3.2078,3283.6,3282.6,1.2504]
[1765413588923,3.2078,3283.5,3283.3,0.15225]
[1765413589123,3.2078,3283.5,3283.4,2.16235]
[1765413589423,3.2078,3283.5,3283.4,2.0101]
[1765413589622,3.21108888,3283.9,3283.8,1.2504]
[1765413590031,4.05788888,3283.9,3283.8,1.2504]
[1765413590526,0.8468,3283.5,3283.4,0.00374709]
[1765413590721,4.0546,3283.5,3283.4,0.00374709]
[1765413590917,3.21108888,3283.9,3283.8,1.2504]
[1765413591117,3.21108888,3283.9,3283.8,5.3802]
[1765413591322,3.21108888,3283.9,3283.8,11.53243]
[1765413591524,3.21108888,3283.9,3283.8,1.40263]
[1765413591923,0.8065,3283.5,3283.4,0.00374709]
[1765413592131,1.95759744,3283.8,3283.7,1.2504]
[1765413592331,1.95759744,3283.8,3283.7,3.2605]
[1765413592527,3.21108888,3283.9,3283.8,2.0101]
[1765413592722,3.21108888,3283.9,3283.7,1.2504]
[1765413593121,1.5728,3283.5,3283.4,0.00374709]
[1765413593326,3.2078,3283.5,3283.4,2.01384709]
[1765413593541,3.9742,3283.5,3283.4,0.00374709]
[1765413593829,3.2078,3283.5,3283.4,0.00374709]
[1765413594024,3.2078,3283.5,3283.4,4.13354709]
[1765413594227,3.2078,3283.5,3283.4,4.28579709]
[1765413594830,0.00328888,3283.9,3283.8,4.1298]
[1765413595226,0.00328888,3283.9,3283.8,4.28203]
[1765413598132,0.00328888,3283.9,3283.8,0.15223]
[1765413598628,0.00328888,3283.9,3283.8,1.93413]
[1765413598834,0.00328888,3283.9,3283.8,3.83033]
[1765413599133,0.00328888,3283.9,3283.8,0.15223]
[1765413599324,0.00328888,3283.9,3283.8,3.83033]
[1765413599726,0.00328888,3283.9,3283.8,1.93413]
[1765413600133,0.00328888,3283.9,3283.8,3.83033]
[1765413600634,0.00328888,3283.9,3283.8,0.15223]
[1765413600829,0.00328888,3283.9,3283.7,1.2504]
[1765413600830,0.00328888,3283.9,3283.7,3.0323]
[1765413601131,0.00328888,3283.9,3283.8,3.83033]
[1765413602333,0.00328888,3283.9,3283.8,9.83033]
[1765413602926,0.00456197,3284.2,3284.1,3.83032]
[1765413603834,0.00769031,3284.2,3284.1,3.83032]
[1765413604222,0.00769031,3284.2,3284.1,12.79432]
[1765413604432,0.00769031,3284.2,3284.1,3.83032]
[1765413604628,0.00769031,3284.2,3284.1,12.77632]
[1765413604824,0.00769031,3284.2,3284.1,16.09832]
[1765413605026,0.00769031,3284.2,3284.1,3.83032]
[1765413605231,0.00769031,3284.2,3284.1,16.09732]
[1765413606236,0.00769031,3284.2,3284.1,3.83032]
[1765413607142,3.21549031,3284.2,3284.1,3.83032]
[1765413609628,0.00769031,3284.2,3284.1,3.83032]
[1765413609833,3.2078,3284.9,3284.8,3.6781]
[1765413610437,3.2078,3284.9,3284.8,3.83028]
[1765413610827,3.2078,3284.9,3284.8,3.6781]
[1765413610828,3.21082519,3284.9,3284.8,3.6781]
[1765413611031,3.21082519,3284.9,3284.5,1.93866899]
[1765413611235,3.21082519,3284.9,3284.8,3.6781]
[1765413611935,0.00302519,3284.9,3284.8,3.6781]